bitfinex-derivatives/quotes_BTCF0:USTF0_20250822
["timestamp","ask_amount","ask_price","bid_price","bid_amount"]
[1755878755947,0.96173688,116610.0,116600.0,0.07221]
[1755878756344,0.4405584,116610.0,116600.0,0.07221]
[1755878756548,0.96273688,116610.0,116600.0,0.07721]
[1755878757052,0.96273688,116610.0,116600.0,0.33437]
[1755878757255,0.4415584,116610.0,116600.0,0.4637253]
[1755878757445,1.3158384,116610.0,116600.0,0.37796]
[1755878758046,1.83701688,116610.0,116600.0,0.37796]
[1755878758845,1.3158384,116610.0,116600.0,0.37796]
[1755878759054,1.83701688,116610.0,116600.0,0.37796]
[1755878759953,0.96273688,116610.0,116600.0,0.40852448]
[1755878760154,1.3158384,116610.0,116600.0,0.49428968]
[1755878760449,0.87528,116610.0,116600.0,0.74428968]
[1755878760646,0.001,116610.0,116600.0,1.62626816]
[1755878761053,0.3608,116630.0,116620.0,0.1909902]
[1755878761354,1.23508,116630.0,116620.0,0.4557102]
[1755878761542,1.23504,116630.0,116620.0,0.4557102]
[1755878761742,0.3608,116630.0,116620.0,0.4557102]
[1755878762248,1.3207829,116630.0,116620.0,0.4557102]
[1755878762448,1.84196138,116630.0,116620.0,0.36996]
[1755878762653,1.84296138,116630.0,116620.0,0.37096]
[1755878764052,1.84296138,116630.0,116620.0,0.37196]
[1755878765353,1.3217829,116630.0,116620.0,0.37196]
[1755878765554,1.84296138,116630.0,116620.0,0.37196]
[1755878766357,1.86339595,116630.0,116620.0,0.37196]
[1755878766560,1.86339595,116630.0,116620.0,0.22004]
[1755878766747,1.86339595,116630.0,116620.0,0.17945]
[1755878767054,1.86339581,116630.0,116620.0,0.17945]
[1755878767850,1.86339581,116630.0,116620.0,0.0022]
[1755878767851,2.11339581,116630.0,116620.0,0.0022]
[1755878770458,2.11339581,116630.0,116620.0,0.07421]
[1755878770757,2.11339581,116630.0,116620.0,0.17945]
[1755878771160,2.11339581,116630.0,116620.0,0.07421]
[1755878772356,1.59221733,116630.0,116620.0,0.33137]
[1755878772557,2.11339581,116630.0,116620.0,0.17945]
[1755878772762,2.11339581,116630.0,116620.0,0.07421]
[1755878773061,1.23915581,116630.0,116620.0,0.07421]
[1755878773261,2.11279581,116630.0,116620.0,0.40146]
[1755878773653,2.11279581,116630.0,116620.0,0.20895]
[1755878773853,2.11279581,116630.0,116620.0,0.10371]
[1755878774359,2.11279581,116630.0,116620.0,0.07421]
[1755878775262,1.59161733,116630.0,116620.0,0.07421]
[1755878775564,2.11279581,116630.0,116620.0,0.07421]
[1755878778350,2.11279581,116630.0,116610.0,0.0716]
[1755878778560,0.0857648,116600.0,116590.0,0.2885489]
[1755878778757,1.3198848,116600.0,116590.0,0.609171]
[1755878778956,1.3198848,116600.0,116590.0,0.5233989]
[1755878779157,1.3198411,116610.0,116600.0,0.43193]
[1755878779357,1.3402243,116610.0,116600.0,0.43193]
[1755878779556,1.86140278,116610.0,116600.0,0.43193]
[1755878780357,1.86240278,116610.0,116600.0,0.43593]
[1755878780665,0.98912278,116610.0,116600.0,0.46639789]
[1755878780856,1.3411043,116610.0,116600.0,0.46639789]
[1755878781057,1.86228278,116610.0,116600.0,0.46639789]
[1755878781259,1.86028278,116610.0,116600.0,0.43593]
[1755878781662,1.86028278,116610.0,116600.0,0.39525]
[1755878781962,1.86028278,116610.0,116600.0,0.0758]
[1755878782168,1.3391043,116610.0,116600.0,0.0758]
[1755878782467,1.86028278,116610.0,116600.0,0.0758]
[1755878782867,1.86028278,116610.0,116600.0,0.0788]
[1755878783656,1.86028278,116610.0,116590.0,0.0870689]
[1755878783657,0.1972247,116600.0,116590.0,0.0870689]
[1755878783859,0.1972247,116600.0,116540.0,0.02562198]
[1755878783860,0.3772415,116550.0,116540.0,0.02562198]
[1755878784167,0.0858162,116530.0,116520.0,0.0981]
[1755878784360,0.60699468,116530.0,116520.0,0.0981]
[1755878784562,1.96968468,116530.0,116520.0,0.0981]
[1755878784760,1.09668468,116530.0,116520.0,0.33982909]
[1755878784956,2.03524468,116530.0,116520.0,0.16528846]
[1755878785167,2.03224468,116530.0,116520.0,0.16528846]
[1755878785463,1.5080662,116530.0,116520.0,0.31310846]
[1755878785658,2.02924468,116530.0,116500.0,0.3608]
[1755878785979,1.25824938,116510.0,116500.0,0.3582]
[1755878786266,0.0848309,116510.0,116500.0,1.49017848]
[1755878786564,0.87304,116520.0,116510.0,0.3582]
[1755878786758,0.9588635,116520.0,116510.0,0.969]
[1755878786963,0.9588635,116520.0,116510.0,0.9692]
[1755878787460,1.3196635,116520.0,116510.0,0.4540352]
[1755878787666,1.93326198,116520.0,116510.0,0.4540352]
[1755878787866,1.5141535,116520.0,116510.0,0.42843676]
[1755878788069,1.3551735,116520.0,116510.0,0.42843676]
[1755878788262,1.3187035,116520.0,116510.0,0.42843676]
[1755878788664,1.3217035,116520.0,116510.0,0.42943676]
[1755878788970,1.4160835,116520.0,116510.0,0.43043676]
[1755878789266,1.4160835,116520.0,116510.0,0.68043676]
[1755878789267,0.4506235,116520.0,116510.0,0.68043676]
[1755878789462,0.9628235,116520.0,116510.0,1.04123676]
[1755878789661,0.9628235,116520.0,116510.0,0.68043676]
[1755878789861,0.9628235,116520.0,116510.0,0.43043676]
[1755878790065,1.4525135,116520.0,116510.0,0.45612409]
[1755878790566,0.9628235,116520.0,116510.0,0.45612409]
[1755878790772,0.87796,116520.0,116510.0,1.31313347]
[1755878790969,0.9637835,116520.0,116510.0,1.67393347]
[1755878791264,0.9638635,116520.0,116510.0,1.58810257]
[1755878791674,0.9638635,116520.0,116510.0,1.06692409]
[1755878791872,0.0908235,116520.0,116510.0,1.06692409]
[1755878792366,0.0908235,116520.0,116510.0,0.70612409]
[1755878792866,0.0908235,116520.0,116510.0,1.06692409]
[1755878793073,0.005,116520.0,116510.0,1.15275499]
[1755878793469,0.2801935,116520.0,116510.0,1.06692409]
[1755878793664,0.0908235,116520.0,116510.0,0.70612409]
[1755878794170,0.005,116520.0,116510.0,0.70612409]
[1755878794477,0.005,116520.0,116510.0,0.78195499]
[1755878794661,0.0908235,116520.0,116510.0,0.69612409]
[1755878794866,0.005,116520.0,116510.0,0.78195499]
[1755878795171,0.005,116520.0,116510.0,1.66393347]
[1755878795372,1.23372,116540.0,116530.0,0.3724162]
[1755878795565,0.87292,116540.0,116530.0,1.25459468]
[1755878796273,1.2575188,116540.0,116530.0,0.2868]
[1755878796479,1.6183188,116540.0,116530.0,0.3584]
[1755878796665,1.5503688,116540.0,116530.0,0.4442162]
[1755878796975,0.2196958,116550.0,116540.0,0.2601]
[1755878797178,1.0925358,116550.0,116540.0,0.3584]
[1755878797469,1.97451428,116550.0,116540.0,0.21058]
[1755878797676,2.04246428,116550.0,116540.0,0.0002]
[1755878798377,1.5262858,116550.0,116540.0,0.0012]
[1755878798577,2.04746428,116550.0,116540.0,0.0012]
[1755878798869,2.04746428,116550.0,116540.0,0.0993]
[1755878799070,0.3833979,116540.0,116530.0,0.001]
[1755878799270,0.0858153,116530.0,116520.0,0.1697]
[1755878799475,1.77738378,116530.0,116520.0,0.31752]
[1755878799777,1.0555653,116530.0,116520.0,0.3582]
[1755878799979,1.5490553,116530.0,116520.0,0.3582]
[1755878800278,1.6170053,116530.0,116520.0,0.3582]
[1755878800778,1.5490153,116530.0,116520.0,0.6082]
[1755878801177,1.5520153,116530.0,116520.0,0.6092]
[1755878801475,1.6199653,116530.0,116520.0,0.6092]
[1755878802566,1.5227453,116530.0,116520.0,0.46138]
[1755878802778,1.6189653,116530.0,116520.0,0.6094]
[1755878802972,1.5510153,116530.0,116520.0,0.6094]
[1755878803178,1.1901753,116530.0,116520.0,0.6952231]
[1755878803370,0.003,116530.0,116520.0,0.6952231]
[1755878803570,0.003,116530.0,116520.0,1.57720158]
[1755878803771,0.003,116530.0,116520.0,1.0560231]
[1755878803979,0.005,116530.0,116520.0,1.57820158]
[1755878804567,0.39727,116550.0,116520.0,1.57820158]
[1755878804766,1.4229312,116550.0,116540.0,0.4441485]
[1755878804970,1.4594012,116550.0,116540.0,0.4443485]
[1755878805172,2.04852968,116550.0,116540.0,0.35854]
[1755878805570,1.08075,116550.0,116540.0,0.4443486]
[1755878805777,0.97933,116550.0,116540.0,0.8051486]
[1755878806384,1.08743923,116550.0,116540.0,0.4443486]
[1755878806585,1.22621923,116550.0,116540.0,0.4443486]
[1755878806785,0.35361923,116550.0,116540.0,0.4443486]
[1755878806974,1.22617923,116550.0,116540.0,0.4443486]
[1755878807282,1.30201923,116550.0,116540.0,0.4463486]
[1755878807671,1.30201923,116550.0,116540.0,0.36054]
[1755878807876,1.82319771,116550.0,116540.0,0.36054]
[1755878808072,2.18399771,116550.0,116540.0,0.10118]
[1755878808277,2.18399771,116550.0,116540.0,0.002]
[1755878809478,0.4039859,116530.0,116520.0,0.79497]
[1755878809784,1.87048438,116530.0,116520.0,0.24719]
[1755878810079,1.1727759,116530.0,116520.0,0.43597]
[1755878810477,1.3493059,116530.0,116520.0,0.43597]
[1755878810797,1.2764659,116530.0,116520.0,0.43597]
[1755878810978,1.2784659,116530.0,116520.0,0.43597]
[1755878811477,1.2784659,116530.0,116520.0,0.7717925]
[1755878811677,1.2804659,116530.0,116520.0,0.7727925]
[1755878811883,0.32217,116530.0,116520.0,1.1335925]
[1755878812483,0.30554608,116530.0,116520.0,1.65477098]
[1755878812680,0.39136128,116530.0,116520.0,1.1335925]
[1755878812882,0.42838128,116530.0,116520.0,1.1335925]
[1755878813189,0.50122128,116530.0,116520.0,1.04777]
[1755878813377,0.50122128,116530.0,116520.0,0.68697]
[1755878813681,0.42838128,116530.0,116520.0,0.7727925]
[1755878814082,0.42838128,116530.0,116520.0,1.65917098]
[1755878814083,0.02439608,116530.0,116520.0,1.65917098]
[1755878814384,0.89667608,116530.0,116520.0,1.1379925]
[1755878814587,0.89667608,116530.0,116520.0,1.65917098]
[1755878814979,0.02439608,116530.0,116520.0,1.65917098]
[1755878815589,0.02439608,116530.0,116520.0,1.1379925]
[1755878815887,0.02439608,116530.0,116520.0,1.65917098]
[1755878816375,0.02439608,116530.0,116520.0,1.1379925]
[1755878816580,0.02439608,116530.0,116520.0,1.65917098]
[1755878818189,0.02439608,116530.0,116520.0,2.53133098]
[1755878820081,0.23043608,116530.0,116520.0,2.0101525]
[1755878820390,0.23043608,116530.0,116520.0,2.53133098]
[1755878820595,0.02439608,116530.0,116520.0,2.53133098]
[1755878821483,0.02685,116550.0,116540.0,0.3766778]
[1755878821682,0.02043569,116550.0,116540.0,1.04295628]
[1755878822193,0.02043569,116550.0,116540.0,0.8825778]
[1755878822384,0.02043569,116550.0,116540.0,1.40375628]
[1755878822584,0.02043569,116550.0,116540.0,0.8825778]
[1755878823290,0.02043569,116550.0,116540.0,1.65375628]
[1755878823501,0.02443569,116550.0,116540.0,2.52655628]
[1755878824395,0.02843569,116550.0,116540.0,2.52755628]
[1755878824602,0.02843569,116550.0,116540.0,2.0063778]
[1755878824797,0.02843569,116550.0,116540.0,2.52755628]
[1755878825210,0.02843569,116550.0,116540.0,2.0063778]
[1755878825506,0.02843569,116550.0,116540.0,2.27755628]
[1755878825713,0.02843569,116550.0,116540.0,1.40575628]
[1755878826002,0.02843569,116550.0,116540.0,0.8845778]
[1755878826404,0.02843569,116550.0,116540.0,1.40575628]
[1755878827604,1.64769,116580.0,116570.0,0.5217557]
[1755878827901,1.38316678,116580.0,116570.0,0.06965]
[1755878828101,0.5267957,116570.0,116560.0,0.328613]
[1755878828306,0.5267957,116570.0,116560.0,0.473713]
[1755878828809,0.5267957,116570.0,116560.0,0.521763]
[1755878829110,0.44101,116570.0,116560.0,0.521763]
[1755878829314,1.23961,116570.0,116560.0,0.521763]
[1755878829505,1.3982357,116570.0,116560.0,0.29087]
[1755878829706,1.91941418,116570.0,116560.0,0.12413474]
[1755878829906,1.91941418,116570.0,116560.0,0.09560474]
[1755878830505,1.4022357,116570.0,116560.0,0.09660474]
[1755878830908,1.92341418,116570.0,116560.0,0.02695474]
[1755878831213,1.92641418,116570.0,116560.0,0.001]
[1755878831415,2.17641418,116570.0,116560.0,0.001]
[1755878831605,2.53721418,116570.0,116560.0,0.001]
[1755878831916,0.16622,116550.0,116540.0,0.54786631]
[1755878832118,0.31991,116550.0,116540.0,1.06904479]
[1755878832317,0.28289,116550.0,116540.0,1.06904479]
[1755878832508,0.02685,116550.0,116540.0,0.54786631]
[1755878832820,0.36817,116560.0,116550.0,0.5217704]
[1755878833023,0.36817,116560.0,116550.0,1.04294888]
[1755878833216,0.02685,116560.0,116550.0,0.8825704]
[1755878833411,0.28289,116560.0,116550.0,0.5217704]
[1755878833616,0.31991,116560.0,116550.0,0.5217704]
[1755878834118,0.1292,116560.0,116550.0,0.5217704]
[1755878834318,0.28437,116560.0,116550.0,0.8835704]
[1755878834506,0.32139,116560.0,116550.0,0.8835704]
[1755878835120,1.19247,116560.0,116550.0,0.8835704]
[1755878835620,1.19247,116560.0,116550.0,0.5227704]
[1755878835621,0.97631,116560.0,116550.0,0.5227704]
[1755878835917,1.15533,116560.0,116550.0,0.5227704]
[1755878836221,1.19535,116560.0,116550.0,0.5227704]
[1755878836416,0.37265,116560.0,116550.0,0.5227704]
[1755878836720,1.24361,116560.0,116550.0,0.5227704]
[1755878836915,1.09144,116560.0,116550.0,0.5227704]
[1755878837117,0.95207,116560.0,116550.0,0.7918704]
[1755878837316,0.95207,116560.0,116550.0,1.1526704]
[1755878837317,0.90381,116560.0,116550.0,1.1526704]
[1755878837517,0.006,116560.0,116550.0,0.7918704]
[1755878837713,0.87688,116560.0,116550.0,1.1526704]
[1755878837910,0.87688,116560.0,116550.0,1.67384888]
[1755878838119,0.006,116560.0,116550.0,1.92384888]
[1755878838522,0.006,116560.0,116550.0,1.4026704]
[1755878838719,0.006,116560.0,116550.0,1.92384888]
[1755878838913,0.006,116560.0,116550.0,1.4026704]
[1755878839222,0.006,116560.0,116550.0,1.92384888]
[1755878839418,0.37289,116560.0,116550.0,1.1526704]
[1755878839718,0.11614,116560.0,116550.0,1.1526704]
[1755878840022,0.08033,116560.0,116550.0,1.1526704]
[1755878840223,0.33708,116560.0,116550.0,1.1526704]
[1755878840523,0.37289,116560.0,116550.0,1.1526704]
[1755878841119,0.08033,116560.0,116550.0,1.1526704]
[1755878841319,0.13855,116560.0,116550.0,1.67384888]
[1755878841621,0.29072,116560.0,116550.0,1.67384888]
[1755878841919,0.006,116560.0,116550.0,1.1526704]
[1755878842109,0.006,116560.0,116550.0,1.67384888]
[1755878842521,0.03581,116580.0,116570.0,0.1556958]
[1755878842722,0.90625,116600.0,116580.0,0.5253186]
[1755878842923,0.88992268,116600.0,116590.0,0.43954]
[1755878843115,0.07433,116590.0,116580.0,0.43066]
[1755878843314,0.25866,116570.0,116560.0,0.43066]
[1755878843514,0.43139,116580.0,116560.0,1.33740178]
[1755878843717,0.10458,116580.0,116570.0,0.8162159]
[1755878843924,0.29236,116590.0,116580.0,0.37063]
[1755878844217,1.26440973,116590.0,116580.0,0.37063]
[1755878844527,0.36295,116590.0,116580.0,0.37063]
[1755878844726,0.03552,116590.0,116580.0,0.37063]
[1755878845023,0.03552,116590.0,116580.0,0.4564085]
[1755878845223,0.03552,116590.0,116580.0,0.5477285]
[1755878845224,0.25684,116590.0,116580.0,0.5477285]
[1755878845412,0.10458,116590.0,116580.0,0.5467285]
[1755878845618,0.25684,116610.0,116600.0,0.10015]
[1755878845820,0.31184199,116610.0,116600.0,0.11001]
[1755878846021,0.38243199,116610.0,116600.0,0.06986]
[1755878846223,0.74323199,116610.0,116600.0,0.21016]
[1755878846525,0.67264199,116610.0,116600.0,0.36963]
[1755878846825,0.74323199,116610.0,116600.0,0.06986]
[1755878847230,0.74323199,116610.0,116600.0,0.32948]
[1755878847527,0.25837,116600.0,116590.0,0.06986]
[1755878847725,0.74323199,116600.0,116590.0,0.1378864]
[1755878848025,0.74323199,116600.0,116590.0,0.2380364]
[1755878848224,0.81756199,116600.0,116590.0,0.3975064]
[1755878848429,0.45676199,116600.0,116590.0,0.5075664]
[1755878848614,0.45676199,116600.0,116590.0,0.3480964]
[1755878848815,0.45676199,116600.0,116590.0,0.5075664]
[1755878849120,0.01948199,116600.0,116590.0,0.8842278]
[1755878849316,0.10611,116630.0,116620.0,0.36963]
[1755878849622,0.01947605,116630.0,116620.0,0.8161793]
[1755878849822,0.01947605,116630.0,116620.0,0.83885838]
[1755878850217,0.27631605,116630.0,116620.0,0.75310908]
[1755878850416,0.01947605,116630.0,116620.0,0.75310908]
[1755878850612,0.28031605,116630.0,116620.0,0.75410908]
[1755878850819,0.02347605,116630.0,116620.0,1.00410908]
[1755878851024,1.61174,116650.0,116640.0,0.36963]
[1755878851222,1.25094,116650.0,116640.0,0.36963]
[1755878851530,1.32153,116650.0,116640.0,0.32948]
[1755878851725,1.25094,116650.0,116640.0,0.36963]
[1755878852028,1.32153,116650.0,116640.0,0.21016]
[1755878852221,1.57153,116650.0,116640.0,0.36963]
[1755878852521,1.57153,116650.0,116630.0,0.53081]
[1755878852522,0.10458,116640.0,116630.0,0.53081]
[1755878852721,0.03552,116640.0,116630.0,0.57096]
[1755878852923,0.29236,116640.0,116630.0,0.57096]
[1755878853127,0.36295,116640.0,116630.0,0.36963]
[1755878853425,1.24492848,116640.0,116630.0,0.06986]
[1755878853627,0.36295,116640.0,116630.0,0.06986]
[1755878853831,0.36295,116640.0,116630.0,0.32948]
[1755878854030,1.06816,116650.0,116630.0,0.8161723]
[1755878854227,1.25594,116650.0,116640.0,0.7061549]
[1755878854422,0.005,116650.0,116640.0,0.9561549]
[1755878854620,1.74225,116670.0,116640.0,1.0661649]
[1755878854823,1.70673,116670.0,116650.0,0.73043]
[1755878855026,1.38145,116670.0,116660.0,0.73043]
[1755878855325,1.27534,116670.0,116660.0,0.73043]
[1755878855521,1.31086,116670.0,116660.0,0.73043]
[1755878856022,1.81208827,116690.0,116680.0,0.15947]
[1755878856336,1.23791,116690.0,116680.0,0.06986]
[1755878856521,0.10458,116680.0,116670.0,0.56042]
[1755878856831,0.72375,116680.0,116670.0,0.36963]
[1755878857132,0.65316,116680.0,116670.0,0.36963]
[1755878857323,0.72375,116680.0,116670.0,0.36963]
[1755878857523,0.72375,116680.0,116670.0,0.2783318]
[1755878857725,0.72375,116680.0,116670.0,0.1380318]
[1755878857931,0.72375,116680.0,116670.0,0.3976518]
[1755878858126,0.97375,116680.0,116670.0,0.0681718]
[1755878858337,0.97375,116680.0,116670.0,0.25962]
[1755878858628,0.72375,116680.0,116670.0,0.11001]
[1755878858836,0.72375,116680.0,116670.0,0.36963]
[1755878859134,0.10558,116680.0,116670.0,0.8161431]
[1755878859321,0.36395,116680.0,116670.0,0.36963]
[1755878859526,0.36395,116680.0,116670.0,0.57096]
[1755878859735,0.36395,116680.0,116670.0,0.43066]
[1755878859936,0.88412848,116680.0,116670.0,0.43066]
[1755878860223,0.36295,116680.0,116670.0,0.69128]
[1755878860428,0.36595,116680.0,116670.0,0.07086]
[1755878860733,0.36595,116680.0,116670.0,0.001]
[1755878860734,1.49792848,116680.0,116670.0,0.001]
[1755878861027,0.3062158,116670.0,116650.0,0.06986]
[1755878861226,1.8298,116660.0,116640.0,0.63028]
[1755878861420,0.32508,116650.0,116640.0,0.73043]
[1755878861626,0.14991,116650.0,116640.0,1.25160848]
[1755878861919,0.68588,116670.0,116660.0,0.36963]
[1755878862326,1.20705848,116670.0,116660.0,0.06986]
[1755878862519,1.54277298,116670.0,116650.0,0.04015]
[1755878862724,1.20705848,116660.0,116650.0,0.06986]
[1755878863032,0.34367649,116660.0,116650.0,0.36963]
[1755878863231,0.05411649,116660.0,116650.0,0.36963]
[1755878863429,0.01859649,116660.0,116650.0,1.29565393]
[1755878863635,0.01859649,116660.0,116650.0,1.13527545]
[1755878863831,0.01859649,116660.0,116650.0,1.65645393]
[1755878864229,0.43139,116690.0,116680.0,0.10114]
[1755878864230,1.84398,116690.0,116680.0,0.10114]
[1755878864427,1.84398,116690.0,116680.0,0.35541]
[1755878864428,0.62791,116690.0,116680.0,0.35541]
[1755878864637,0.26711,116690.0,116680.0,0.35541]
[1755878864935,0.3608,116700.0,116690.0,0.4411099]
[1755878865127,0.62791,116710.0,116700.0,0.4411025]
[1755878865333,0.42191827,116710.0,116700.0,0.4411025]
[1755878865633,1.74149827,116720.0,116710.0,0.25427]
[1755878865832,1.38069827,116720.0,116710.0,0.35541]
[1755878866134,1.38069827,116720.0,116700.0,0.06986]
[1755878866135,2.66894625,116720.0,116700.0,0.06986]
[1755878866324,0.3377,116710.0,116700.0,0.31626]
[1755878866525,0.3427,116710.0,116700.0,0.35641]
[1755878866722,0.27211,116710.0,116700.0,0.35641]
[1755878866938,0.26711,116710.0,116700.0,0.35541]
[1755878867325,0.62964827,116720.0,116700.0,0.96228098]
[1755878867532,0.09909827,116720.0,116710.0,0.87496848]
[1755878867733,0.06411827,116720.0,116710.0,0.4394751]
[1755878867938,0.06411827,116720.0,116710.0,0.87496848]
[1755878868238,0.33857,116720.0,116710.0,0.09958531]
[1755878868436,0.33857,116720.0,116710.0,0.05852531]
[1755878868634,0.69637,116720.0,116710.0,0.12597464]
[1755878868837,0.33557,116720.0,116710.0,0.30392531]
[1755878869033,0.29923827,116720.0,116710.0,0.34498531]
[1755878869228,0.33557,116720.0,116710.0,0.34498531]
[1755878870031,0.33657,116720.0,116710.0,0.34498531]
[1755878870234,0.005,116720.0,116710.0,0.95184909]
[1755878870435,0.005,116720.0,116710.0,0.79147061]
[1755878870634,0.23659,116720.0,116710.0,0.70578531]
[1755878870940,0.34057,116720.0,116710.0,0.34498531]
[1755878871131,0.27057,116720.0,116710.0,0.70578531]
[1755878871630,0.004,116720.0,116710.0,1.31264899]
[1755878871825,0.004,116720.0,116710.0,0.79147051]
[1755878872032,0.004,116720.0,116710.0,0.70578531]
[1755878872333,0.23559,116720.0,116710.0,0.70578531]
[1755878873142,0.26957,116720.0,116710.0,0.77400224]
[1755878873334,0.26957,116720.0,116710.0,0.77600224]
[1755878873726,0.26957,116720.0,116710.0,0.77400224]
[1755878873936,0.33068827,116720.0,116710.0,0.77400224]
[1755878874335,0.06111827,116720.0,116710.0,1.38086582]
[1755878874539,0.06211827,116720.0,116710.0,0.85968734]
[1755878874745,0.13514,116720.0,116710.0,0.85968734]
[1755878875040,0.001,116720.0,116710.0,0.85968734]
[1755878875244,0.001,116720.0,116710.0,1.38086582]
[1755878875541,0.001,116720.0,116710.0,1.10968734]
[1755878875738,1.51428,116740.0,116730.0,0.4394604]
[1755878875940,0.07629495,116740.0,116730.0,0.89118818]
[1755878876137,0.59413495,116750.0,116740.0,0.1940531]
[1755878876441,0.63257043,116750.0,116740.0,0.96063158]
[1755878876639,0.47553043,116750.0,116740.0,0.4394531]
[1755878876839,0.01728043,116750.0,116740.0,1.32143158]
[1755878877035,0.01728043,116750.0,116740.0,0.8002531]
[1755878877342,0.01728043,116750.0,116740.0,1.32143158]
[1755878877343,0.07829495,116750.0,116740.0,1.32143158]
[1755878877545,0.07629495,116760.0,116750.0,0.0856558]
[1755878877731,0.07629495,116760.0,116750.0,1.32142428]
[1755878878040,0.43709495,116770.0,116750.0,1.21062428]
[1755878878239,0.36945495,116770.0,116760.0,0.35379]
[1755878878533,0.36945495,116770.0,116760.0,0.37322782]
[1755878878735,0.63280495,116770.0,116760.0,0.37322782]
[1755878878935,0.43709495,116770.0,116760.0,0.9800548]
[1755878879237,0.07633646,116770.0,116760.0,0.7274048]
[1755878879443,0.73246697,116780.0,116760.0,0.20622632]
[1755878879633,0.004,116770.0,116760.0,0.9800548]
[1755878879941,0.16104,116770.0,116760.0,0.45887632]
[1755878880144,0.08035754,116770.0,116760.0,0.9800548]
[1755878880336,0.004,116770.0,116760.0,1.3408548]
[1755878880532,0.11095697,116770.0,116760.0,0.9800548]
[1755878880736,0.18732599,116770.0,116760.0,0.9800548]
[1755878880942,0.08036902,116770.0,116760.0,0.9800548]
[1755878881136,0.08436902,116770.0,116760.0,0.45887632]
[1755878881335,0.08436902,116770.0,116760.0,0.9800548]
[1755878881631,0.08036902,116770.0,116760.0,1.5908548]
[1755878881837,0.07636902,116770.0,116760.0,2.7430948]
[1755878882029,0.004,116770.0,116760.0,2.76542295]
[1755878882230,0.08036902,116770.0,116760.0,2.76542295]
[1755878882530,0.005,116770.0,116760.0,2.24424447]
[1755878882735,0.005,116770.0,116760.0,2.87591625]
[1755878882935,0.005,116770.0,116760.0,2.35473777]
[1755878883133,0.50642697,116800.0,116790.0,0.4394165]
[1755878883332,0.61529,116800.0,116790.0,0.40933779]
[1755878883633,0.79853224,116800.0,116790.0,0.93051627]
[1755878883835,0.62126567,116810.0,116800.0,0.0856192]
[1755878884039,0.87575567,116810.0,116800.0,0.39138965]
[1755878884244,0.87575567,116810.0,116800.0,0.91256813]
[1755878884643,0.07638067,116810.0,116800.0,0.39138965]
[1755878884838,0.25449,116810.0,116800.0,0.39138965]
[1755878885038,0.25449,116810.0,116800.0,0.30577045]
[1755878885238,0.82986884,116810.0,116800.0,0.37310045]
[1755878885744,0.84386884,116810.0,116800.0,0.89527893]
[1755878886042,0.12090884,116810.0,116800.0,0.37410045]
[1755878886244,0.72919884,116810.0,116800.0,0.37310045]
[1755878886541,0.013,116810.0,116800.0,1.77625741]
[1755878886741,0.07631137,116810.0,116800.0,0.81686975]
[1755878886931,0.00513137,116810.0,116800.0,0.81686975]
[1755878887140,0.15704,116830.0,116800.0,0.81686975]
[1755878887337,0.36216,116840.0,116830.0,0.35379]
[1755878887542,0.51359567,116850.0,116840.0,0.35379]
[1755878888041,0.32349,116850.0,116840.0,0.35379]
[1755878888239,0.72296,116850.0,116840.0,0.28646]
[1755878888432,0.72296,116850.0,116840.0,0.35379]
[1755878888639,0.72296,116850.0,116830.0,0.15566345]
[1755878888843,0.72696,116840.0,116830.0,0.37479345]
[1755878889033,0.72696,116840.0,116830.0,0.12939345]
[1755878889349,0.36216,116820.0,116810.0,0.17009458]
[1755878889538,0.72296,116820.0,116810.0,0.01004116]
[1755878889838,0.35767,116820.0,116810.0,0.30133997]
[1755878890039,0.29316,116830.0,116820.0,0.04106]
[1755878890242,0.90396,116830.0,116810.0,0.39140061]
[1755878890445,0.90396,116830.0,116810.0,0.43099244]
[1755878890446,0.31073202,116820.0,116810.0,0.43099244]
[1755878890648,0.31073148,116820.0,116810.0,0.49832244]
[1755878890838,0.29316,116820.0,116810.0,0.81538305]
[1755878891140,0.29316,116820.0,116810.0,0.78478244]
[1755878891337,0.15371204,116820.0,116810.0,0.64052244]
[1755878891537,0.29316,116820.0,116810.0,0.78478244]
[1755878891734,0.3107502,116820.0,116810.0,0.78478244]
[1755878891936,0.31075173,116820.0,116810.0,0.78578244]
[1755878892142,0.31075173,116820.0,116810.0,0.54238244]
[1755878892143,0.36216,116820.0,116810.0,0.54238244]
[1755878892344,0.62929249,116820.0,116810.0,0.43399244]
[1755878892646,0.62929447,116820.0,116810.0,0.31759244]
[1755878892951,0.6292935,116820.0,116810.0,0.07419244]
[1755878893143,0.61216,116820.0,116810.0,0.68039244]
[1755878893339,0.62941565,116820.0,116810.0,0.50232244]
[1755878893541,0.37492559,116820.0,116810.0,0.78878244]
[1755878893742,0.61824,116820.0,116810.0,0.54338244]
[1755878893944,0.63549373,116820.0,116810.0,0.54338244]
[1755878894143,0.63549373,116820.0,116810.0,0.50232244]
[1755878894352,0.63533593,116820.0,116810.0,0.07419244]
[1755878894545,0.61824,116820.0,116810.0,0.09750595]
[1755878895147,0.61824,116820.0,116780.0,0.19190176]
[1755878895148,0.36062,116790.0,116780.0,0.04968976]
[1755878895346,0.31173,116780.0,116770.0,0.04589881]
[1755878895547,0.10767,116760.0,116750.0,0.42168401]
[1755878895751,0.21732,116760.0,116750.0,0.54638267]
[1755878895951,0.32856775,116760.0,116750.0,0.73684267]
[1755878896456,0.12530775,116760.0,116750.0,0.73684267]
[1755878896651,0.32843847,116760.0,116750.0,0.48738267]
[1755878896845,0.32843847,116760.0,116750.0,0.44632267]
[1755878897042,0.35155487,116760.0,116750.0,0.37899267]
[1755878897354,0.30036,116740.0,116730.0,0.44164744]
[1755878897652,0.31779492,116740.0,116730.0,0.01914286]
[1755878897954,0.31779006,116740.0,116730.0,0.01914286]
[1755878898157,0.30036,116740.0,116730.0,0.01914286]
[1755878898351,1.0889717,116740.0,116730.0,0.01914286]
[1755878898745,0.31750981,116740.0,116730.0,0.26860286]
[1755878898947,0.20785981,116740.0,116730.0,0.46855426]
[1755878899252,0.07023,116750.0,116740.0,0.4494041]
[1755878899453,0.001,116760.0,116750.0,0.2999906]
[1755878899646,0.11611,116800.0,116790.0,0.22007]
[1755878899956,0.11611,116800.0,116790.0,0.49416432]
[1755878899957,0.16856487,116800.0,116790.0,0.49416432]
[1755878900144,0.15092,116800.0,116790.0,0.64356432]
[1755878900344,0.28467487,116800.0,116790.0,0.13336432]
[1755878900550,0.13375487,116800.0,116790.0,0.59995432]
[1755878900755,0.26703,116800.0,116790.0,0.64356432]